Workbook

Sheet Produktionsanlæg
A1: Produktionsanlæg | B1: Enhed | C1: Standard-levetid | D1: Samlet mængde per 31/12-2014 | E1: Samlet mængde per 31/12-2015 | F1: Bemærk-ninger
A3: Renseanlæg 1
A4: Mindre renseanlæg
A5: Mindre renseanlæg < 5.000 PE uden mulighed for opdeling | B5: PE | C5: 40 | D5: =25165-270-1200-2145 -> 21550 | E5: 3600 | F5: Gårslev=3600
A6: Mindre renseanlæg < 5.000 PE uden mulighed for opdeling | B6: PE | C6: 40 | D6: 0 | E6: 2400 | F6: Smidstrup=2400
A7: Mindre renseanlæg < 5.000 PE uden mulighed for opdeling | B7: PE | C7: 40 | D7: 0 | E7: 3150 | F7: Egtved=3150
A8: Mindre renseanlæg < 5.000 PE uden mulighed for opdeling | B8: PE | C8: 40 | D8: 0 | E8: 4500 | F8: Thyregod=4500
A9: Mindre renseanlæg < 5.000 PE uden mulighed for opdeling | B9: PE | C9: 40 | D9: 0 | E9: 4500 | F9: Jelling=4500
A10: Renseanlæg >= 5.000 PE, Vandbehandling
A11: Indløb med riste, Konstruktioner | B11: PE | C11: 60 | D11: 0 | E11: 0
A12: Indløb med riste, Mek/EL | B12: PE | C12: 20 | D12: 0 | E12: 0
A13: Indløb med riste, SRO | B13: PE | C13: 10 | D13: 0 | E13: 0
A14: Sand- og fedtfang, Kontruktioner | B14: PE | C14: 60 | D14: 0 | E14: 0
A15: Sand- og fedtfang, Mek/EL | B15: PE | C15: 20 | D15: 0 | E15: 0
A16: Sand- og fedtfang, SRO | B16: PE | C16: 10 | D16: 0 | E16: 0
A17: Forklaring, Konstruktioner | B17: PE | C17: 60 | D17: 0 | E17: 0
A18: Forklaring, Mek/EL | B18: PE | C18: 20 | D18: 0 | E18: 0
A19: Forklaring, SRO | B19: PE | C19: 10 | D19: 0 | E19: 0
A20: Beluftningstanke, Konstruktioner | B20: PE | C20: 60 | D20: 0 | E20: 0
A21: Beluftningstanke, Mek/EL | B21: PE | C21: 20 | D21: 0 | E21: 0
A22: Beluftningstanke, SRO | B22: PE | C22: 10 | D22: 0 | E22: 0
A23: Efterklaringstanke, Konstruktioner | B23: PE | C23: 60 | D23: 0 | E23: 0
A24: Efterklaringstanke, Mek/El | B24: PE | C24: 20 | D24: 0 | E24: 0
A25: Efterklaringstanke, SRO | B25: PE | C25: 10 | D25: 0 | E25: 0
A26: Efterbehandlingsanlæg (sandfilter), Konstruktioner | B26: PE | C26: 60 | D26: 0 | E26: 0
A27: Efterbehandlingsanlæg (sandfilter), Mek/EL | B27: PE | C27: 20 | D27: 0 | E27: 0
A28: Efterbehandlingsanlæg (sandfilter), SRO | B28: PE | C28: 10 | D28: 0 | E28: 0
A29: Renseanlæg >= 5.000 PE, Slambehandling
A30: Forafvanding, slam, Konstruktion | B30: PE | C30: 60 | D30: 0 | E30: 0
A31: Forafvanding, slam, Mek/EL | B31: PE | C31: 20 | D31: 0 | E31: 0
A32: Forafvanding, slam, SRO | B32: PE | C32: 10 | D32: 0 | E32: 0
A33: Rådnetanke, slam, Konstruktioner | B33: PE | C33: 60 | D33: 0 | E33: 0
A34: Rådnetanke, slam, Mek/EL | B34: PE | C34: 20 | D34: 0 | E34: 0
A35: Rådnetanke, slam, SRO | B35: PE | C35: 10 | D35: 0 | E35: 0
A36: Gasdisponering, Konstruktioner | B36: PE | C36: 60 | D36: 0 | E36: 0
A37: Gasdisponering, Mek/EL | B37: PE | C37: 20 | D37: 0 | E37: 0
A38: Gasdisponering, SRO | B38: PE | C38: 10 | D38: 0 | E38: 0
A39: Gasdisponering - elproduktionsanlæg, Konstruktioner | B39: PE | C39: 60 | D39: 0 | E39: 0
A40: Gasdisponering - elproduktionsanlæg, Mek/EL | B40: PE | C40: 20 | D40: 0 | E40: 0
A41: Gasdisponering - elproduktionsanlæg, SRO | B41: PE | C41: 10 | D41: 0 | E41: 0
A42: Slutafvanding, slam - lavteknologisk (slambede), Konstruktioner | B42: PE | C42: 60 | D42: 0 | E42: 0
A43: Slutafvanding, slam - lavteknologisk (slambede), Mek/EL | B43: PE | C43: 20 | D43: 0 | E43: 0
A44: Slutafvanding, slam - lavteknologisk (slambede), SRO | B44: PE | C44: 10 | D44: 0 | E44: 0
A45: Slutafvanding, slam - højteknologisk (centrifuger), Konstruktioner | B45: PE | C45: 60 | D45: 0 | E45: 0
A46: Slutafvanding, slam - højteknologisk (centrifuger), Mek/El | B46: PE | C46: 20 | D46: 0 | E46: 0
A47: Slutafvanding, slam - højteknologisk (centrifuger), SRO | B47: PE | C47: 10 | D47: 0 | E47: 0
A48: Renseanlæg >= 5.000 PE, Slamdisponering
A49: Slutdisponering, slam - lavteknologisk (slammineralisering), Konstruktioner | B49: PE | C49: 60 | D49: 0 | E49: 0
A50: Slutdisponering, slam - lavteknologisk (slammineralisering), Mek/EL | B50: PE | C50: 20 | D50: 0 | E50: 0
A51: Slutdisponering, slam - lavteknologisk (slammineralisering), SRO | B51: PE | C51: 10 | D51: 0 | E51: 0
A52: Slutdisponering, slam - højteknologisk (slamtørring), Konstruktioner | B52: PE | C52: 60 | D52: 0 | E52: 0
A53: Slutdisponering, slam - højteknologisk (slamtørring), Mek/EL | B53: PE | C53: 20 | D53: 0 | E53: 0
A54: Slutdisponering, slam - højteknologisk (slamtørring), SRO | B54: PE | C54: 10 | D54: 0 | E54: 0
A55: Slutdisponering, slam - højteknologisk (slamtørring og -forbrænding), Konstruktioner | B55: PE | C55: 60 | D55: 0 | E55: 0
A56: Slutdisponering, slam - højteknologisk (slamtørring og -forbrænding), Mek/EL | B56: PE | C56: 20 | D56: 0 | E56: 0
A57: Slutdisponering, slam - højteknologisk (slamtørring og -forbrænding), SRO | B57: PE | C57: 10 | D57: 0 | E57: 0
A58: Renseanlæg 2
A59: Mindre renseanlæg
A60: Mindre renseanlæg < 5.000 PE uden mulighed for opdeling | B60: PE | C60: 40 | D60: =1000 -> 1000 | E60: 0 | F60: Langelund =nedlagt i 2015
A61: Renseanlæg >= 5.000 PE, Vandbehandling
A62: Indløb med riste, Konstruktioner | B62: PE | C62: 60 | D62: 0 | E62: 0
A63: Indløb med riste, Mek/EL | B63: PE | C63: 20 | D63: 0 | E63: 0
A64: Indløb med riste, SRO | B64: PE | C64: 10 | D64: 0 | E64: 0
A65: Sand- og fedtfang, Kontruktioner | B65: PE | C65: 60 | D65: 0 | E65: 0
A66: Sand- og fedtfang, Mek/EL | B66: PE | C66: 20 | D66: 0 | E66: 0
A67: Sand- og fedtfang, SRO | B67: PE | C67: 10 | D67: 0 | E67: 0
A68: Forklaring, Konstruktioner | B68: PE | C68: 60 | D68: 0 | E68: 0
A69: Forklaring, Mek/EL | B69: PE | C69: 20 | D69: 0 | E69: 0
A70: Forklaring, SRO | B70: PE | C70: 10 | D70: 0 | E70: 0
A71: Beluftningstanke, Konstruktioner | B71: PE | C71: 60 | D71: 0 | E71: 0
A72: Beluftningstanke, Mek/EL | B72: PE | C72: 20 | D72: 0 | E72: 0
A73: Beluftningstanke, SRO | B73: PE | C73: 10 | D73: 0 | E73: 0
A74: Efterklaringstanke, Konstruktioner | B74: PE | C74: 60 | D74: 0 | E74: 0
A75: Efterklaringstanke, Mek/El | B75: PE | C75: 20 | D75: 0 | E75: 0
A76: Efterklaringstanke, SRO | B76: PE | C76: 10 | D76: 0 | E76: 0
A77: Efterbehandlingsanlæg (sandfilter), Konstruktioner | B77: PE | C77: 60 | D77: 0 | E77: 0
A78: Efterbehandlingsanlæg (sandfilter), Mek/EL | B78: PE | C78: 20 | D78: 0 | E78: 0
A79: Efterbehandlingsanlæg (sandfilter), SRO | B79: PE | C79: 10 | D79: 0 | E79: 0
A80: Renseanlæg >= 5.000 PE, Slambehandling
A81: Forafvanding, slam, Konstruktion | B81: PE | C81: 60 | D81: 0 | E81: 0
A82: Forafvanding, slam, Mek/EL | B82: PE | C82: 20 | D82: 0 | E82: 0
A83: Forafvanding, slam, SRO | B83: PE | C83: 10 | D83: 0 | E83: 0
A84: Rådnetanke, slam, Konstruktioner | B84: PE | C84: 60 | D84: 0 | E84: 0
A85: Rådnetanke, slam, Mek/EL | B85: PE | C85: 20 | D85: 0 | E85: 0
A86: Rådnetanke, slam, SRO | B86: PE | C86: 10 | D86: 0 | E86: 0
A87: Gasdisponering, Konstruktioner | B87: PE | C87: 60 | D87: 0 | E87: 0
A88: Gasdisponering, Mek/EL | B88: PE | C88: 20 | D88: 0 | E88: 0
A89: Gasdisponering, SRO | B89: PE | C89: 10 | D89: 0 | E89: 0
A90: Gasdisponering - elproduktionsanlæg, Konstruktioner | B90: PE | C90: 60 | D90: 0 | E90: 0
A91: Gasdisponering - elproduktionsanlæg, Mek/EL | B91: PE | C91: 20 | D91: 0 | E91: 0
A92: Gasdisponering - elproduktionsanlæg, SRO | B92: PE | C92: 10 | D92: 0 | E92: 0
A93: Slutafvanding, slam - lavteknologisk (slambede), Konstruktioner | B93: PE | C93: 60 | D93: 0 | E93: 0
A94: Slutafvanding, slam - lavteknologisk (slambede), Mek/EL | B94: PE | C94: 20 | D94: 0 | E94: 0
A95: Slutafvanding, slam - lavteknologisk (slambede), SRO | B95: PE | C95: 10 | D95: 0 | E95: 0
A96: Slutafvanding, slam - højteknologisk (centrifuger), Konstruktioner | B96: PE | C96: 60 | D96: 0 | E96: 0
A97: Slutafvanding, slam - højteknologisk (centrifuger), Mek/El | B97: PE | C97: 20 | D97: 0 | E97: 0
A98: Slutafvanding, slam - højteknologisk (centrifuger), SRO | B98: PE | C98: 10 | D98: 0 | E98: 0
A99: Renseanlæg >= 5.000 PE, Slamdisponering
A100: Slutdisponering, slam - lavteknologisk (slammineralisering), Konstruktioner | B100: PE | C100: 60 | D100: 0 | E100: 0
A101: Slutdisponering, slam - lavteknologisk (slammineralisering), Mek/EL | B101: PE | C101: 20 | D101: 0 | E101: 0
A102: Slutdisponering, slam - lavteknologisk (slammineralisering), SRO | B102: PE | C102: 10 | D102: 0 | E102: 0
A103: Slutdisponering, slam - højteknologisk (slamtørring), Konstruktioner | B103: PE | C103: 60 | D103: 0 | E103: 0
A104: Slutdisponering, slam - højteknologisk (slamtørring), Mek/EL | B104: PE | C104: 20 | D104: 0 | E104: 0
A105: Slutdisponering, slam - højteknologisk (slamtørring), SRO | B105: PE | C105: 10 | D105: 0 | E105: 0
A106: Slutdisponering, slam - højteknologisk (slamtørring og -forbrænding), Konstruktioner | B106: PE | C106: 60 | D106: 0 | E106: 0
A107: Slutdisponering, slam - højteknologisk (slamtørring og -forbrænding), Mek/EL | B107: PE | C107: 20 | D107: 0 | E107: 0
A108: Slutdisponering, slam - højteknologisk (slamtørring og -forbrænding), SRO | B108: PE | C108: 10 | D108: 0 | E108: 0
A109: Renseanlæg 3
A110: Mindre renseanlæg
A111: Mindre renseanlæg < 5.000 PE uden mulighed for opdeling | B111: PE | C111: 40 | D111: =5 -> 5 | E111: 5
A112: Renseanlæg >= 5.000 PE, Vandbehandling
A113: Indløb med riste, Konstruktioner | B113: PE | C113: 60 | D113: 0 | E113: 0
A114: Indløb med riste, Mek/EL | B114: PE | C114: 20 | D114: 0 | E114: 0
A115: Indløb med riste, SRO | B115: PE | C115: 10 | D115: 0 | E115: 0
A116: Sand- og fedtfang, Kontruktioner | B116: PE | C116: 60 | D116: 0 | E116: 0
A117: Sand- og fedtfang, Mek/EL | B117: PE | C117: 20 | D117: 0 | E117: 0
A118: Sand- og fedtfang, SRO | B118: PE | C118: 10 | D118: 0 | E118: 0
A119: Forklaring, Konstruktioner | B119: PE | C119: 60 | D119: 0 | E119: 0
A120: Forklaring, Mek/EL | B120: PE | C120: 20 | D120: 0 | E120: 0
A121: Forklaring, SRO | B121: PE | C121: 10 | D121: 0 | E121: 0
A122: Beluftningstanke, Konstruktioner | B122: PE | C122: 60 | D122: 0 | E122: 0
A123: Beluftningstanke, Mek/EL | B123: PE | C123: 20 | D123: 0 | E123: 0
A124: Beluftningstanke, SRO | B124: PE | C124: 10 | D124: 0 | E124: 0
A125: Efterklaringstanke, Konstruktioner | B125: PE | C125: 60 | D125: 0 | E125: 0
A126: Efterklaringstanke, Mek/El | B126: PE | C126: 20 | D126: 0 | E126: 0
A127: Efterklaringstanke, SRO | B127: PE | C127: 10 | D127: 0 | E127: 0
A128: Efterbehandlingsanlæg (sandfilter), Konstruktioner | B128: PE | C128: 60 | D128: 0 | E128: 0
A129: Efterbehandlingsanlæg (sandfilter), Mek/EL | B129: PE | C129: 20 | D129: 0 | E129: 0
A130: Efterbehandlingsanlæg (sandfilter), SRO | B130: PE | C130: 10 | D130: 0 | E130: 0
A131: Renseanlæg >= 5.000 PE, Slambehandling
A132: Forafvanding, slam, Konstruktion | B132: PE | C132: 60 | D132: 0 | E132: 0
A133: Forafvanding, slam, Mek/EL | B133: PE | C133: 20 | D133: 0 | E133: 0
A134: Forafvanding, slam, SRO | B134: PE | C134: 10 | D134: 0 | E134: 0
A135: Rådnetanke, slam, Konstruktioner | B135: PE | C135: 60 | D135: 0 | E135: 0
A136: Rådnetanke, slam, Mek/EL | B136: PE | C136: 20 | D136: 0 | E136: 0
A137: Rådnetanke, slam, SRO | B137: PE | C137: 10 | D137: 0 | E137: 0
A138: Gasdisponering, Konstruktioner | B138: PE | C138: 60 | D138: 0 | E138: 0
A139: Gasdisponering, Mek/EL | B139: PE | C139: 20 | D139: 0 | E139: 0
A140: Gasdisponering, SRO | B140: PE | C140: 10 | D140: 0 | E140: 0
A141: Gasdisponering - elproduktionsanlæg, Konstruktioner | B141: PE | C141: 60 | D141: 0 | E141: 0
A142: Gasdisponering - elproduktionsanlæg, Mek/EL | B142: PE | C142: 20 | D142: 0 | E142: 0
A143: Gasdisponering - elproduktionsanlæg, SRO | B143: PE | C143: 10 | D143: 0 | E143: 0
A144: Slutafvanding, slam - lavteknologisk (slambede), Konstruktioner | B144: PE | C144: 60 | D144: 0 | E144: 0
A145: Slutafvanding, slam - lavteknologisk (slambede), Mek/EL | B145: PE | C145: 20 | D145: 0 | E145: 0
A146: Slutafvanding, slam - lavteknologisk (slambede), SRO | B146: PE | C146: 10 | D146: 0 | E146: 0
A147: Slutafvanding, slam - højteknologisk (centrifuger), Konstruktioner | B147: PE | C147: 60 | D147: 0 | E147: 0
A148: Slutafvanding, slam - højteknologisk (centrifuger), Mek/El | B148: PE | C148: 20 | D148: 0 | E148: 0
A149: Slutafvanding, slam - højteknologisk (centrifuger), SRO | B149: PE | C149: 10 | D149: 0 | E149: 0
A150: Renseanlæg >= 5.000 PE, Slamdisponering
A151: Slutdisponering, slam - lavteknologisk (slammineralisering), Konstruktioner | B151: PE | C151: 60 | D151: 0 | E151: 0
A152: Slutdisponering, slam - lavteknologisk (slammineralisering), Mek/EL | B152: PE | C152: 20 | D152: 0 | E152: 0
A153: Slutdisponering, slam - lavteknologisk (slammineralisering), SRO | B153: PE | C153: 10 | D153: 0 | E153: 0
A154: Slutdisponering, slam - højteknologisk (slamtørring), Konstruktioner | B154: PE | C154: 60 | D154: 0 | E154: 0
A155: Slutdisponering, slam - højteknologisk (slamtørring), Mek/EL | B155: PE | C155: 20 | D155: 0 | E155: 0
A156: Slutdisponering, slam - højteknologisk (slamtørring), SRO | B156: PE | C156: 10 | D156: 0 | E156: 0
A157: Slutdisponering, slam - højteknologisk (slamtørring og -forbrænding), Konstruktioner | B157: PE | C157: 60 | D157: 0 | E157: 0
A158: Slutdisponering, slam - højteknologisk (slamtørring og -forbrænding), Mek/EL | B158: PE | C158: 20 | D158: 0 | E158: 0
A159: Slutdisponering, slam - højteknologisk (slamtørring og -forbrænding), SRO | B159: PE | C159: 10 | D159: 0 | E159: 0
A160: Renseanlæg 4
A161: Mindre renseanlæg
A162: Mindre renseanlæg < 5.000 PE uden mulighed for opdeling | B162: PE | C162: 40 | D162: =5 -> 5 | E162: 5
A163: Renseanlæg >= 5.000 PE, Vandbehandling
A164: Indløb med riste, Konstruktioner | B164: PE | C164: 60 | D164: 0 | E164: 0
A165: Indløb med riste, Mek/EL | B165: PE | C165: 20 | D165: 0 | E165: 0
A166: Indløb med riste, SRO | B166: PE | C166: 10 | D166: 0 | E166: 0
A167: Sand- og fedtfang, Kontruktioner | B167: PE | C167: 60 | D167: 0 | E167: 0
A168: Sand- og fedtfang, Mek/EL | B168: PE | C168: 20 | D168: 0 | E168: 0
A169: Sand- og fedtfang, SRO | B169: PE | C169: 10 | D169: 0 | E169: 0
A170: Forklaring, Konstruktioner | B170: PE | C170: 60 | D170: 0 | E170: 0
A171: Forklaring, Mek/EL | B171: PE | C171: 20 | D171: 0 | E171: 0
A172: Forklaring, SRO | B172: PE | C172: 10 | D172: 0 | E172: 0
A173: Beluftningstanke, Konstruktioner | B173: PE | C173: 60 | D173: 0 | E173: 0
A174: Beluftningstanke, Mek/EL | B174: PE | C174: 20 | D174: 0 | E174: 0
A175: Beluftningstanke, SRO | B175: PE | C175: 10 | D175: 0 | E175: 0
A176: Efterklaringstanke, Konstruktioner | B176: PE | C176: 60 | D176: 0 | E176: 0
A177: Efterklaringstanke, Mek/El | B177: PE | C177: 20 | D177: 0 | E177: 0
A178: Efterklaringstanke, SRO | B178: PE | C178: 10 | D178: 0 | E178: 0
A179: Efterbehandlingsanlæg (sandfilter), Konstruktioner | B179: PE | C179: 60 | D179: 0 | E179: 0
A180: Efterbehandlingsanlæg (sandfilter), Mek/EL | B180: PE | C180: 20 | D180: 0 | E180: 0
A181: Efterbehandlingsanlæg (sandfilter), SRO | B181: PE | C181: 10 | D181: 0 | E181: 0
A182: Renseanlæg >= 5.000 PE, Slambehandling
A183: Forafvanding, slam, Konstruktion | B183: PE | C183: 60 | D183: 0 | E183: 0
A184: Forafvanding, slam, Mek/EL | B184: PE | C184: 20 | D184: 0 | E184: 0
A185: Forafvanding, slam, SRO | B185: PE | C185: 10 | D185: 0 | E185: 0
A186: Rådnetanke, slam, Konstruktioner | B186: PE | C186: 60 | D186: 0 | E186: 0
A187: Rådnetanke, slam, Mek/EL | B187: PE | C187: 20 | D187: 0 | E187: 0
A188: Rådnetanke, slam, SRO | B188: PE | C188: 10 | D188: 0 | E188: 0
A189: Gasdisponering, Konstruktioner | B189: PE | C189: 60 | D189: 0 | E189: 0
A190: Gasdisponering, Mek/EL | B190: PE | C190: 20 | D190: 0 | E190: 0
A191: Gasdisponering, SRO | B191: PE | C191: 10 | D191: 0 | E191: 0
A192: Gasdisponering - elproduktionsanlæg, Konstruktioner | B192: PE | C192: 60 | D192: 0 | E192: 0
A193: Gasdisponering - elproduktionsanlæg, Mek/EL | B193: PE | C193: 20 | D193: 0 | E193: 0
A194: Gasdisponering - elproduktionsanlæg, SRO | B194: PE | C194: 10 | D194: 0 | E194: 0
A195: Slutafvanding, slam - lavteknologisk (slambede), Konstruktioner | B195: PE | C195: 60 | D195: 0 | E195: 0
A196: Slutafvanding, slam - lavteknologisk (slambede), Mek/EL | B196: PE | C196: 20 | D196: 0 | E196: 0
A197: Slutafvanding, slam - lavteknologisk (slambede), SRO | B197: PE | C197: 10 | D197: 0 | E197: 0
A198: Slutafvanding, slam - højteknologisk (centrifuger), Konstruktioner | B198: PE | C198: 60 | D198: 0 | E198: 0
A199: Slutafvanding, slam - højteknologisk (centrifuger), Mek/El | B199: PE | C199: 20 | D199: 0 | E199: 0
A200: Slutafvanding, slam - højteknologisk (centrifuger), SRO | B200: PE | C200: 10 | D200: 0 | E200: 0
A201: Renseanlæg >= 5.000 PE, Slamdisponering
... 365 more rows

Sheet Distributionsanlæg
A1: Distributionsanlæg | B1: Enhed | C1: Standard-levetid | D1: Samlet mængde per 31/12-2014 | E1: Samlet mængde per 31/12-2015 | F1: Bemærk-ninger
A3: Ledningsnet - Land
A4: Ledningsnet ≤ Ø 200 mm | B4: meter | C4: 75 | D4: =(290082.38+40854.46+(D61*5))*1.029616 -> 387317.6933 | E4: 421788.968 | F4: NT 40,9k
A5: Ø 200 mm < Ledningsnet ≤ Ø 500 mm | B5: meter | C5: 75 | D5: =(88263.93+1632.94)*1.029616 -> 92559.2557 | E5: 100797.0295 | F5: NT1,6k
A6: Ø 500 mm < Ledningsnet ≤ Ø 800 mm | B6: meter | C6: 75 | D6: =(10947.9+468.16)*1.029616 -> 11754.15803 | E6: 12800.2781 | F6: NT 0,5K
A7: Ø 800 mm < Ledningsnet ≤ Ø 1000 mm | B7: meter | C7: 75 | D7: =4183.51*1.029616 -> 4307.408832 | E7: 4690.768218 | F7: NT 0
A8: Ø 1000 mm < Ledningsnet ≤ Ø 1200 mm | B8: meter | C8: 75 | D8: =1305.52*1.029616 -> 1344.18428 | E8: 1463.816681 | F8: NT 0
A9: Ø 1200 mm < Ledningsnet ≤ Ø 1600 mm | B9: meter | C9: 75 | D9: =1005.64*1.029616 -> 1035.423034 | E9: 1127.575684 | F9: NT 0
A10: Ledningsnet > Ø 1600 mm (rørbassiner og transportledninger) | B10: meter | C10: 75 | D10: =265.55*1.029616 -> 273.4145288 | E10: 297.7484219 | F10: NT 0
A11: Strømpeforing ≤ Ø 200 mm | B11: meter | C11: 50 | D11: =246.84+2623.74 -> 2870.58 | E11: 3126.06162 | F11: NT 2,6k
A12: Strømpeforing Ø 200 mm < Ledningsnet ≤ Ø 500 mm | B12: meter | C12: 50 | D12: =794.26+573.35 -> 1367.61 | E12: 1489.32729 | F12: NT 0,6K
A13: Strømpeforing Ø 500 mm < Ledningsnet ≤ Ø 800 mm | B13: meter | C13: 50 | D13: 361.45 | E13: 393.61905 | F13: NT 0,4k
A14: Strømpeforing Ø 800 mm < Ledningsnet ≤ Ø 1000 mm | B14: meter | C14: 50 | D14: 0 | E14: 0
A15: Strømpeforing Ø 1000 mm < Ledningsnet ≤ Ø 1200 mm | B15: meter | C15: 50 | D15: 0 | E15: 0
A16: Strømpeforing Ø 1200 mm < Ledningsnet ≤ Ø 1600 mm | B16: meter | C16: 50 | D16: 0 | E16: 0
A17: Ledningsnet - By
A18: Ledningsnet ≤ Ø 200 mm | B18: meter | C18: 75 | D18: =(582787.57+43897+(D64*5))*1.029616 -> 818389.8349 | E18: 1099097.548 | F18: NT 43,9K
A19: Ø 200 mm < Ledningsnet ≤ Ø 500 mm | B19: meter | C19: 75 | D19: =(321944.54+23693.39)*1.029616 -> 355874.3429 | E19: 477939.2426 | F19: NT 23,7K
A20: Ø 500 mm < Ledningsnet ≤ Ø 800 mm | B20: meter | C20: 75 | D20: =(71954.24+4922.4)*1.029616 -> 79153.41857 | E20: 106303.0411 | F20: NT 4,9K
A21: Ø 800 mm < Ledningsnet ≤ Ø 1000 mm | B21: meter | C21: 75 | D21: =(14577.65+2378.63)*1.029616 -> 17458.45719 | E21: 23446.708 | F21: NT 2,4K
A22: Ø 1000 mm < Ledningsnet ≤ Ø 1200 mm | B22: meter | C22: 75 | D22: =(5256.28+358.8)*1.029616 -> 5781.376209 | E22: 7764.388249 | F22: NT 0,4k
A23: Ø 1200 mm < Ledningsnet ≤ Ø 1600 mm | B23: meter | C23: 75 | D23: =(3499.28+852.49)*1.029616 -> 4480.65202 | E23: 6017.515663 | F23: NT 0,9K
A24: Ledningsnet > Ø 1600 mm (rørbassiner og transportledninger) | B24: meter | C24: 75 | D24: =(337.17+362.14)*1.029616 -> 720.020765 | E24: 966.9878873 | F24: NT 0,4k
A25: Strømpeforing ≤ Ø 200 mm | B25: meter | C25: 50 | D25: =10585.22+7740.55 -> 18325.77 | E25: 24611.50911 | F25: NT 7,7K
A26: Strømpeforing Ø 200 mm < Ledningsnet ≤ Ø 500 mm | B26: meter | C26: 50 | D26: =10907.53+5313.1 -> 16220.63 | E26: 21784.30609 | F26: NT 5,3k
A27: Strømpeforing Ø 500 mm < Ledningsnet ≤ Ø 800 mm | B27: meter | C27: 50 | D27: =805.6+2084.12 -> 2889.72 | E27: 3880.89396 | F27: NT 2,1K
A28: Strømpeforing Ø 800 mm < Ledningsnet ≤ Ø 1000 mm | B28: meter | C28: 50 | D28: 0 | E28: 0
A29: Strømpeforing Ø 1000 mm < Ledningsnet ≤ Ø 1200 mm | B29: meter | C29: 50 | D29: 0 | E29: 0
A30: Strømpeforing Ø 1200 mm < Ledningsnet ≤ Ø 1600 mm | B30: meter | C30: 50 | D30: 0 | E30: 0
A31: Ledningsnet - City
A32: Ledningsnet ≤ Ø 200 mm | B32: meter | C32: 75 | D32: =(23827.87+12.31+(D67*5))*1.029616 -> 36484.62829 | E32: 36484.62829 | F32: NT 0,01k
A33: Ø 200 mm < Ledningsnet ≤ Ø 500 mm | B33: meter | C33: 75 | D33: =(32377.81+119.23)*1.029616 -> 33459.47234 | E33: 33459.47234 | F33: NT 0,1K
A34: Ø 500 mm < Ledningsnet ≤ Ø 800 mm | B34: meter | C34: 75 | D34: =7710.58*1.029616 -> 7938.936537 | E34: 7938.936537 | F34: NT 0
A35: Ø 800 mm < Ledningsnet ≤ Ø 1000 mm | B35: meter | C35: 75 | D35: =2160.48*1.029616 -> 2224.464776 | E35: 2224.464776 | F35: NT 0
A36: Ø 1000 mm < Ledningsnet ≤ Ø 1200 mm | B36: meter | C36: 75 | D36: =1428.29*1.029616 -> 1470.590237 | E36: 1470.590237 | F36: NT 0
A37: Ø 1200 mm < Ledningsnet ≤ Ø 1600 mm | B37: meter | C37: 75 | D37: =1616.2*1.029616 -> 1664.065379 | E37: 1664.065379 | F37: NT 0
A38: Ledningsnet > Ø 1600 mm (rørbassiner og transportledninger) | B38: meter | C38: 75 | D38: =(610.17+225.75)*1.029616 -> 860.6766067 | E38: 860.6766067 | F38: NT 0,2K
A39: Strømpeforing ≤ Ø 200 mm | B39: meter | C39: 50 | D39: 1249.64 | E39: 1249.64 | F39: NT 0
A40: Strømpeforing Ø 200 mm < Ledningsnet ≤ Ø 500 mm | B40: meter | C40: 50 | D40: =3808.09+295 -> 4103.09 | E40: 4103.09 | F40: NT 0,3K
A41: Strømpeforing Ø 500 mm < Ledningsnet ≤ Ø 800 mm | B41: meter | C41: 50 | D41: =694.22+276.98 -> 971.2 | E41: 971.2 | F41: NT 0,3K
A42: Strømpeforing Ø 800 mm < Ledningsnet ≤ Ø 1000 mm | B42: meter | C42: 50 | D42: 0 | E42: 0
A43: Strømpeforing Ø 1000 mm < Ledningsnet ≤ Ø 1200 mm | B43: meter | C43: 50 | D43: 0 | E43: 0
A44: Strømpeforing Ø 1200 mm < Ledningsnet ≤ Ø 1600 mm | B44: meter | C44: 50 | D44: 0 | E44: 0
A45: Ledningsnet - Indre city
A46: Ledningsnet ≤ Ø 200 mm | B46: meter | C46: 75 | D46: 0 | E46: 0
A47: Ø 200 mm < Ledningsnet ≤ Ø 500 mm | B47: meter | C47: 75 | D47: 0 | E47: 0
A48: Ø 500 mm < Ledningsnet ≤ Ø 800 mm | B48: meter | C48: 75 | D48: 0 | E48: 0
A49: Ø 800 mm < Ledningsnet ≤ Ø 1000 mm | B49: meter | C49: 75 | D49: 0 | E49: 0
A50: Ø 1000 mm < Ledningsnet ≤ Ø 1200 mm | B50: meter | C50: 75 | D50: 0 | E50: 0
A51: Ø 1200 mm < Ledningsnet ≤ Ø 1600 mm | B51: meter | C51: 75 | D51: 0 | E51: 0
A52: Ledningsnet > Ø 1600 mm (rørbassiner og transportledninger) | B52: meter | C52: 75 | D52: 0 | E52: 0
A53: Strømpeforing ≤ Ø 200 mm | B53: meter | C53: 50 | D53: 0 | E53: 0
A54: Strømpeforing Ø 200 mm < Ledningsnet ≤ Ø 500 mm | B54: meter | C54: 50 | D54: 0 | E54: 0
A55: Strømpeforing Ø 500 mm < Ledningsnet ≤ Ø 800 mm | B55: meter | C55: 50 | D55: 0 | E55: 0
A56: Strømpeforing Ø 800 mm < Ledningsnet ≤ Ø 1000 mm | B56: meter | C56: 50 | D56: 0 | E56: 0
A57: Strømpeforing Ø 1000 mm < Ledningsnet ≤ Ø 1200 mm | B57: meter | C57: 50 | D57: 0 | E57: 0
A58: Strømpeforing Ø 1200 mm < Ledningsnet ≤ Ø 1600 mm | B58: meter | C58: 50 | D58: 0 | E58: 0
A59: Brønde og stik, ledningsnet - Land
A60: Brønde | B60: stk. | C60: 75 | D60: =5943+54 -> 5997 | E60: 6530.733 | F60: NT 54
A61: Stik | B61: stk. | C61: 75 | D61: =9048 -> 9048 | E61: 9853.272 | F61: NT 0
A62: Brønde og stik, ledningsnet - By
A63: Brønde | B63: stk. | C63: 75 | D63: =22090+1563 -> 23653 | E63: 31765.979 | F63: NT1563
A64: Stik | B64: stk. | C64: 75 | D64: =33633 -> 33633 | E64: 45169.119
A65: Brønde og stik, ledningsnet - City
A66: Brønde | B66: stk. | C66: 75 | D66: =1523+7 -> 1530 | E66: =+D66 -> 1530 | F66: NT 7
A67: Stik | B67: stk. | C67: 75 | D67: =2319 -> 2319 | E67: =+D67 -> 2319 | F67: NT 0
A68: Brønde og stik, ledningsnet - Indre city
A69: Brønde | B69: stk. | C69: 75 | D69: 0 | E69: 0
A70: Stik | B70: stk. | C70: 75 | D70: 0 | E70: 0
A71: Små pumpestationer inkl. SRO-anlæg - Land | E71: 0
A72: Tryksatte minipumpestationer (husstandssystemer) | B72: stk. | C72: 30 | D72: =217+128 -> 345 | E72: =217+128+145 -> 490 | F72: NT 128
A73: Pumpestationer i brønde (< 6,25 m2), Konstruktioner | B73: stk. | C73: 50 | D73: =163+10 -> 173 | E73: =163+10 -> 173 | F73: NT 10
A74: Pumpestationer i brønde (< 6,25 m2), Mek/EL | B74: stk. | C74: 20 | D74: =163+10 -> 173 | E74: =163+10 -> 173 | F74: NT 10
A75: Pumpestationer i brønde (< 6,25 m2), SRO | B75: stk. | C75: 10 | D75: =141+10 -> 151 | E75: =141+10 -> 151 | F75: NT 10
A76: Pumpestationer m. overbygning (< 20 m2), Konstruktioner | B76: stk. | C76: 50 | D76: 8 | E76: 8 | F76: NT 0
A77: Pumpestationer m. overbygning (< 20 m2), Mek/EL | B77: stk. | C77: 20 | D77: 8 | E77: 8 | F77: NT 0
A78: Pumpestationer m. overbygning (< 20 m2), SRO | B78: stk. | C78: 10 | D78: 8 | E78: 8 | F78: NT 0
A79: Pumpestationer i underjordiske bygværker (<50 m2), Konstruktioner | B79: stk. | C79: 50 | D79: 0 | E79: 0
A80: Pumpestationer i underjordiske bygværker (<50 m2), Mek/El | B80: stk. | C80: 20 | D80: 0
A81: Pumpestationer i underjordiske bygværker (<50 m2), SRO | B81: stk. | C81: 10 | D81: 0
A82: Små pumpestationer inkl. SRO-anlæg - By
A83: Tryksatte minipumpestationer (husstandssystemer) | B83: stk. | C83: 30 | D83: =0+2 -> 2 | E83: =0+2 -> 2 | F83: NT 2
A84: Pumpestationer i brønde (< 6,25 m2), Konstruktioner | B84: stk. | C84: 50 | D84: =132+18 -> 150 | E84: =132+18+3 -> 153 | F84: NT 18
A85: Pumpestationer i brønde (< 6,25 m2), Mek/EL | B85: stk. | C85: 20 | D85: =133+18 -> 151 | E85: =133+18+3 -> 154 | F85: NT 18
A86: Pumpestationer i brønde (< 6,25 m2), SRO | B86: stk. | C86: 10 | D86: =129+18 -> 147 | E86: =129+18+3 -> 150 | F86: NT 18
A87: Pumpestationer m. overbygning (< 20 m2), Konstruktioner | B87: stk. | C87: 50 | D87: 2 | E87: 2 | F87: NT 0
A88: Pumpestationer m. overbygning (< 20 m2), Mek/EL | B88: stk. | C88: 20 | D88: 2 | E88: 2 | F88: NT 0
A89: Pumpestationer m. overbygning (< 20 m2), SRO | B89: stk. | C89: 10 | D89: 2 | E89: 2 | F89: NT 0
A90: Pumpestationer i underjordiske bygværker (<50 m2), Konstruktioner | B90: stk. | C90: 50 | D90: 0 | E90: 0
A91: Pumpestationer i underjordiske bygværker (<50 m2), Mek/El | B91: stk. | C91: 20 | D91: 0 | E91: 0
A92: Pumpestationer i underjordiske bygværker (<50 m2), SRO | B92: stk. | C92: 10 | D92: 0 | E92: 0
A93: Små pumpestationer inkl. SRO-anlæg - City
A94: Tryksatte minipumpestationer (husstandssystemer) | B94: stk. | C94: 30 | D94: 77 | E94: =77+1 -> 78 | F94: NT 0
A95: Pumpestationer i brønde (< 6,25 m2), Konstruktioner | B95: stk. | C95: 50 | D95: =23+1 -> 24 | E95: =23+1+1 -> 25 | F95: NT 1
A96: Pumpestationer i brønde (< 6,25 m2), Mek/EL | B96: stk. | C96: 20 | D96: =23+1 -> 24 | E96: =23+1+1 -> 25 | F96: NT 1
A97: Pumpestationer i brønde (< 6,25 m2), SRO | B97: stk. | C97: 10 | D97: =23+1 -> 24 | E97: 25 | F97: NT 1
A98: Pumpestationer m. overbygning (< 20 m2), Konstruktioner | B98: stk. | C98: 50 | D98: =4 -> 4 | E98: =4 -> 4 | F98: NT 0
A99: Pumpestationer m. overbygning (< 20 m2), Mek/EL | B99: stk. | C99: 20 | D99: =4 -> 4 | E99: =4 -> 4 | F99: NT 0
A100: Pumpestationer m. overbygning (< 20 m2), SRO | B100: stk. | C100: 10 | D100: =4 -> 4 | E100: =4 -> 4 | F100: NT 0
A101: Pumpestationer i underjordiske bygværker (<50 m2), Konstruktioner | B101: stk. | C101: 50 | D101: 0 | E101: 0
A102: Pumpestationer i underjordiske bygværker (<50 m2), Mek/El | B102: stk. | C102: 20 | D102: 0 | E102: 0
A103: Pumpestationer i underjordiske bygværker (<50 m2), SRO | B103: stk. | C103: 10 | D103: 0 | E103: 0
A104: Små pumpestationer inkl. SRO-anlæg - Indre city
A105: Tryksatte minipumpestationer (husstandssystemer) | B105: stk. | C105: 30 | D105: 0 | E105: 0
A106: Pumpestationer i brønde (< 6,25 m2), Konstruktioner | B106: stk. | C106: 50 | D106: 0 | E106: 0
A107: Pumpestationer i brønde (< 6,25 m2), Mek/EL | B107: stk. | C107: 20 | D107: 0 | E107: 0
A108: Pumpestationer i brønde (< 6,25 m2), SRO | B108: stk. | C108: 10 | D108: 0 | E108: 0
A109: Pumpestationer m. overbygning (< 20 m2), Konstruktioner | B109: stk. | C109: 50 | D109: 0 | E109: 0
A110: Pumpestationer m. overbygning (< 20 m2), Mek/EL | B110: stk. | C110: 20 | D110: 0 | E110: 0
A111: Pumpestationer m. overbygning (< 20 m2), SRO | B111: stk. | C111: 10 | D111: 0 | E111: 0
A112: Pumpestationer i underjordiske bygværker (<50 m2), Konstruktioner | B112: stk. | C112: 50 | D112: 0 | E112: 0
A113: Pumpestationer i underjordiske bygværker (<50 m2), Mek/El | B113: stk. | C113: 20 | D113: 0 | E113: 0
A114: Pumpestationer i underjordiske bygværker (<50 m2), SRO | B114: stk. | C114: 10 | D114: 0 | E114: 0
A115: Store pumpestationer: inkl. SRO-anlæg - Land
A116: Kælder | B116: m2 | C116: 75 | D116: 0 | E116: 0
A117: Pumpeinstallation Miljøklasse A (100-300 l/s) - Mek/EL | B117: stk. | C117: 20 | D117: 0 | E117: 3
A118: Pumpeinstallation Miljøklasse A (100-300 l/s) - SRO | B118: stk. | C118: 10 | D118: 0 | E118: 0
A119: Pumpeinstallation Miljøklasse A (300-600 l/s) - Mek/EL | B119: stk. | C119: 20 | D119: 0 | E119: 0
A120: Pumpeinstallation Miljøklasse A (300-600 l/s) - SRO | B120: stk. | C120: 10 | D120: 0 | E120: 0
A121: Pumpeinstallation Miljøklasse A (600-1.000 l/s) - Mek/EL | B121: stk. | C121: 20 | D121: 0 | E121: 0
A122: Pumpeinstallation Miljøklasse A (600-1.000 l/s) - SRO | B122: stk. | C122: 10 | D122: 0 | E122: 0
A123: Pumpeinstallation Miljøklasse A (1.000-1.500 l/s) - Mek/EL | B123: stk. | C123: 20 | D123: 0 | E123: 0
A124: Pumpeinstallation Miljøklasse A (1.000-1.500 l/s) - SRO | B124: stk. | C124: 10 | D124: 0 | E124: 0
A125: Pumpeinstallation Miljøklasse B (100-300 l/s) - Mek/EL | B125: stk. | C125: 20 | D125: 0 | E125: 0
A126: Pumpeinstallation Miljøklasse B (100-300 l/s) - SRO | B126: stk. | C126: 10 | D126: 0 | E126: 0
A127: Pumpeinstallation Miljøklasse B (300-600 l/s) - Mek/EL | B127: stk. | C127: 20 | D127: 0 | E127: 0
A128: Pumpeinstallation Miljøklasse B (300-600 l/s) - SRO | B128: stk. | C128: 10 | D128: 0 | E128: 0
A129: Pumpeinstallation Miljøklasse B (600-1.000 l/s) - Mek/EL | B129: stk. | C129: 20 | D129: 0 | E129: 0
A130: Pumpeinstallation Miljøklasse B (600-1.000 l/s) - SRO | B130: stk. | C130: 10 | D130: 0 | E130: 0
A131: Pumpeinstallation Miljøklasse B (1.000-1.500 l/s) - Mek/EL | B131: stk. | C131: 20 | D131: 0 | E131: 0
A132: Pumpeinstallation Miljøklasse B (1.000-1.500 l/s) - SRO | B132: stk. | C132: 10 | D132: 0 | E132: 0
A133: Overbygning | B133: m2 | C133: 75 | D133: 0 | E133: 0
A134: Store pumpestationer: inkl. SRO-anlæg - By
A135: Kælder | B135: m2 | C135: 75 | D135: 40 | E135: =40+1 -> 41
A136: Pumpeinstallation Miljøklasse A (100-300 l/s) - Mek/EL | B136: stk. | C136: 20 | D136: 2 | E136: =2+1 -> 3
A137: Pumpeinstallation Miljøklasse A (100-300 l/s) - SRO | B137: stk. | C137: 10 | D137: 2 | E137: =2+1 -> 3
A138: Pumpeinstallation Miljøklasse A (300-600 l/s) - Mek/EL | B138: stk. | C138: 20 | D138: 0 | E138: 0
A139: Pumpeinstallation Miljøklasse A (300-600 l/s) - SRO | B139: stk. | C139: 10 | D139: 0 | E139: 0
A140: Pumpeinstallation Miljøklasse A (600-1.000 l/s) - Mek/EL | B140: stk. | C140: 20 | D140: 0 | E140: 0
A141: Pumpeinstallation Miljøklasse A (600-1.000 l/s) - SRO | B141: stk. | C141: 10 | D141: 0 | E141: 0
A142: Pumpeinstallation Miljøklasse A (1.000-1.500 l/s) - Mek/EL | B142: stk. | C142: 20 | D142: 0 | E142: 0
A143: Pumpeinstallation Miljøklasse A (1.000-1.500 l/s) - SRO | B143: stk. | C143: 10 | D143: 0 | E143: 0
A144: Pumpeinstallation Miljøklasse B (100-300 l/s) - Mek/EL | B144: stk. | C144: 20 | D144: 0 | E144: 0
A145: Pumpeinstallation Miljøklasse B (100-300 l/s) - SRO | B145: stk. | C145: 10 | D145: 0 | E145: 0
A146: Pumpeinstallation Miljøklasse B (300-600 l/s) - Mek/EL | B146: stk. | C146: 20 | D146: 0 | E146: 0
A147: Pumpeinstallation Miljøklasse B (300-600 l/s) - SRO | B147: stk. | C147: 10 | D147: 0 | E147: 0
A148: Pumpeinstallation Miljøklasse B (600-1.000 l/s) - Mek/EL | B148: stk. | C148: 20 | D148: 0 | E148: 0
A149: Pumpeinstallation Miljøklasse B (600-1.000 l/s) - SRO | B149: stk. | C149: 10 | D149: 0 | E149: 0
A150: Pumpeinstallation Miljøklasse B (1.000-1.500 l/s) - Mek/EL | B150: stk. | C150: 20 | D150: 0 | E150: 0
A151: Pumpeinstallation Miljøklasse B (1.000-1.500 l/s) - SRO | B151: stk. | C151: 10 | D151: 0 | E151: 0
A152: Overbygning | B152: m2 | C152: 75 | D152: 60 | E152: =60+1 -> 61
A153: Store pumpestationer: inkl. SRO-anlæg - City
A154: Kælder | B154: m2 | C154: 75 | D154: 0 | E154: =+D154 -> 0
A155: Pumpeinstallation Miljøklasse A (100-300 l/s) - Mek/EL | B155: stk. | C155: 20 | D155: 4 | E155: =+D155 -> 4
A156: Pumpeinstallation Miljøklasse A (100-300 l/s) - SRO | B156: stk. | C156: 10 | D156: 4 | E156: 4
A157: Pumpeinstallation Miljøklasse A (300-600 l/s) - Mek/EL | B157: stk. | C157: 20 | D157: 0 | E157: 0
A158: Pumpeinstallation Miljøklasse A (300-600 l/s) - SRO | B158: stk. | C158: 10 | D158: 0 | E158: 0
A159: Pumpeinstallation Miljøklasse A (600-1.000 l/s) - Mek/EL | B159: stk. | C159: 20 | D159: 0 | E159: 0
A160: Pumpeinstallation Miljøklasse A (600-1.000 l/s) - SRO | B160: stk. | C160: 10 | D160: 0 | E160: 0
A161: Pumpeinstallation Miljøklasse A (1.000-1.500 l/s) - Mek/EL | B161: stk. | C161: 20 | D161: 0 | E161: 0
A162: Pumpeinstallation Miljøklasse A (1.000-1.500 l/s) - SRO | B162: stk. | C162: 10 | D162: 0 | E162: 0
A163: Pumpeinstallation Miljøklasse B (100-300 l/s) - Mek/EL | B163: stk. | C163: 20 | D163: 0 | E163: 0
A164: Pumpeinstallation Miljøklasse B (100-300 l/s) - SRO | B164: stk. | C164: 10 | D164: 0 | E164: 0
A165: Pumpeinstallation Miljøklasse B (300-600 l/s) - Mek/EL | B165: stk. | C165: 20 | D165: 0 | E165: 0
A166: Pumpeinstallation Miljøklasse B (300-600 l/s) - SRO | B166: stk. | C166: 10 | D166: 0 | E166: 0
A167: Pumpeinstallation Miljøklasse B (600-1.000 l/s) - Mek/EL | B167: stk. | C167: 20 | D167: 0 | E167: 0
A168: Pumpeinstallation Miljøklasse B (600-1.000 l/s) - SRO | B168: stk. | C168: 10 | D168: 0 | E168: 0
A169: Pumpeinstallation Miljøklasse B (1.000-1.500 l/s) - Mek/EL | B169: stk. | C169: 20 | D169: 0 | E169: 0
A170: Pumpeinstallation Miljøklasse B (1.000-1.500 l/s) - SRO | B170: stk. | C170: 10 | D170: 0 | E170: 0
A171: Overbygning | B171: m2 | C171: 75 | D171: 80 | E171: 80
A172: Store pumpestationer: inkl. SRO-anlæg - Indre city
A173: Kælder | B173: m2 | C173: 75 | D173: 0 | E173: 0
A174: Pumpeinstallation Miljøklasse A (100-300 l/s) - Mek/EL | B174: stk. | C174: 20 | D174: 0 | E174: 0
A175: Pumpeinstallation Miljøklasse A (100-300 l/s) - SRO | B175: stk. | C175: 10 | D175: 0 | E175: 0
A176: Pumpeinstallation Miljøklasse A (300-600 l/s) - Mek/EL | B176: stk. | C176: 20 | D176: 0 | E176: 0
A177: Pumpeinstallation Miljøklasse A (300-600 l/s) - SRO | B177: stk. | C177: 10 | D177: 0 | E177: 0
A178: Pumpeinstallation Miljøklasse A (600-1.000 l/s) - Mek/EL | B178: stk. | C178: 20 | D178: 0 | E178: 0
A179: Pumpeinstallation Miljøklasse A (600-1.000 l/s) - SRO | B179: stk. | C179: 10 | D179: 0 | E179: 0
A180: Pumpeinstallation Miljøklasse A (1.000-1.500 l/s) - Mek/EL | B180: stk. | C180: 20 | D180: 0 | E180: 0
A181: Pumpeinstallation Miljøklasse A (1.000-1.500 l/s) - SRO | B181: stk. | C181: 10 | D181: 0 | E181: 0
A182: Pumpeinstallation Miljøklasse B (100-300 l/s) - Mek/EL | B182: stk. | C182: 20 | D182: 0 | E182: 0
A183: Pumpeinstallation Miljøklasse B (100-300 l/s) - SRO | B183: stk. | C183: 10 | D183: 0 | E183: 0
A184: Pumpeinstallation Miljøklasse B (300-600 l/s) - Mek/EL | B184: stk. | C184: 20 | D184: 0 | E184: 0
A185: Pumpeinstallation Miljøklasse B (300-600 l/s) - SRO | B185: stk. | C185: 10 | D185: 0 | E185: 0
A186: Pumpeinstallation Miljøklasse B (600-1.000 l/s) - Mek/EL | B186: stk. | C186: 20 | D186: 0 | E186: 0
A187: Pumpeinstallation Miljøklasse B (600-1.000 l/s) - SRO | B187: stk. | C187: 10 | D187: 0 | E187: 0
A188: Pumpeinstallation Miljøklasse B (1.000-1.500 l/s) - Mek/EL | B188: stk. | C188: 20 | D188: 0 | E188: 0
A189: Pumpeinstallation Miljøklasse B (1.000-1.500 l/s) - SRO | B189: stk. | C189: 10 | D189: 0 | E189: 0
A190: Overbygning | B190: m2 | C190: 75 | D190: 0 | E190: 0
A191: Overløbsbygværker - Land
A192: Kælder (< 7 m2) | B192: stk. | C192: 75 | D192: 42 | E192: =+D192 -> 42
A193: Kælder (7 - 20 m2) | B193: m2 | C193: 75 | D193: 405 | E193: =+D193 -> 405
A194: Kælder (20 - 30 m2) | B194: m2 | C194: 75 | D194: 0 | E194: 0
A195: Installationer "ingen eller faste riste" (mindre end 7 m2) | B195: stk. | C195: 20 | D195: 42 | E195: 42
A196: Installationer "mekaniske riste og SRO" Miljøklasse A. (7-20 m2) - Mek/EL | B196: stk. | C196: 20 | D196: 0 | E196: 0
A197: Installationer "mekaniske riste og SRO" Miljøklasse A. (7-20 m2) - SRO | B197: stk. | C197: 10 | D197: 0 | E197: 0
A198: Installationer "mekaniske riste og SRO" Miljøklasse A. (20-30 m2) - Mek/EL | B198: stk. | C198: 20 | D198: 0 | E198: 0
A199: Installationer "mekaniske riste og SRO" Miljøklasse A. (20-30 m2) - SRO | B199: stk. | C199: 10 | D199: 2 | E199: 2
A200: Installationer "mekaniske riste og SRO" Miljøklasse B. (7-20 m2) - Mek/EL | B200: stk. | C200: 20 | D200: 30 | E200: 30
A201: Installationer "mekaniske riste og SRO" Miljøklasse B. (7-20 m2) - SRO | B201: stk. | C201: 10 | D201: 28 | E201: 28
... 121 more rows

Sheet Fællesfunktionsanlæg
A1: Fællesfunktionsanlæg | B1: Enhed | C1: Standard-levetid | D1: Samlet mængde per 31/12-2014 | E1: Samlet mængde per 31/12-2015 | F1: Bemærk-ninger
A4: Andre
A5: Administrationbygninger | B5: m2 | C5: 75 | D5: =1354+1270+95 -> 2719 | E5: =1354+1270+95 -> 2719 | F5: NT 1270
A6: Arbejdsplads og kontor | B6: stk. | C6: 5 | D6: 40 | E6: 45
A7: Køretøjer, personbil | B7: stk. | C7: 5 | D7: =3+2-2 -> 3 | E7: 2 | F7: NT 2
A8: Køretøjer, små lastvogne (< 3.500 kg.) | B8: stk. | C8: 5 | D8: =12+5 -> 17 | E8: 17
A9: Køretøjer, store lastvogne (> 3.500 kg.) | B9: stk. | C9: 5 | D9: =1-1 -> 0 | E9: 0 | F9: NT-1
A10: Køretøjer, entreprenørmaskiner | B10: stk. | C10: 5 | D10: 0 | E10: 0
A11: Slamsugere | B11: stk. | C11: 5 | D11: 0 | E11: 0
A12: Værksteder, garager | B12: m2 | C12: 75 | D12: =1127+800+40 -> 1967 | E12: =1127+800+40 -> 1967 | F12: NT 840
A13: Øvrige
A14: Solcelleanlæg | B14: KWh | C14: 25 | D14: =50+50+18 -> 118 | E14: =50+50+18 -> 118 | F14: NT 118
A15: EDB, tablets og navigationsudstyr | B15: stk. | C15: 5 | D15: 40 | E15: 45
A16: Elektroniske kort | B16: stk. | C16: 5 | D16: 1 | E16: 1 | F16: NT 1

Sheet Drop downliste (hidden)
B2: datakvalitet | C2: Serviceselskab | D2: Overheads | E2: Infrastrukturomlægninger | F2: Infrastruktur per år | G2: år 1 | H2: år 2 | I2: år 3 | J2: år 4 | K2: år 5
G3: 2010 | H3: 2011 | I3: 2012 | J3: 2013 | K3: 2014
B4: 1 | C4: ja | D4: Full-cost | E4: ja | F4: 0.1
B5: 2 | C5: nej | D5: Direct-cost | E5: nej | F5: 0.2
B6: 3 | D6: Nøgletalsfordeling | F6: 0.3
D7: Activity based cost | F7: 0.4
D8: Andet | F8: 0.5
F9: 0.6
F10: 0.7
F11: 0.8
F12: 0.9
F13: 1
